[Event "Titled Tuesday Blitz March 29 Early 2022"]
[White "Hua, Lefong"]
[Black "Buscar, Michael"]
[WhiteFideId "2602253"]
[BlackFideId "2603616"]
[WhiteElo "2601"]
[BlackElo "2010"]
[Result "1-0"]
[Round "10"]
[TimeControl "180+1"]
[Date "2022.03.30"]
[WhiteClock "0:00:31"]
[BlackClock "0:00:46"]

1. d4 {[%clk 0:02:28]}  d5 {[%clk 0:02:58]} 2. c4 {[%clk 0:02:28]}  e6 {[%clk 0:02:58]} 3. Nc3 {[%clk 0:02:29]}  a6 {[%clk 0:02:57]} 4. cxd5 {[%clk 0:02:27]}  exd5 {[%clk 0:02:57]} 5. Qb3 {[%clk 0:02:19]}  Nf6 {[%clk 0:02:56]} 6. Bg5 {[%clk 0:02:19]}  c6 {[%clk 0:02:53]} 7. e3 {[%clk 0:02:17]}  Be7 {[%clk 0:02:53]} 8. Bd3 {[%clk 0:02:17]}  O-O {[%clk 0:02:48]} 9. Nge2 {[%clk 0:02:15]}  Nbd7 {[%clk 0:02:47]} 10. O-O {[%clk 0:02:15]}  Re8 {[%clk 0:02:47]} 11. Qc2 {[%clk 0:02:07]}  Nf8 {[%clk 0:02:47]} 12. f3 {[%clk 0:02:03]}  g6 {[%clk 0:02:46]} 13. Bh4 {[%clk 0:02:02]}  Ne6 {[%clk 0:02:46]} 14. Bf2 {[%clk 0:02:01]}  Ng7 {[%clk 0:02:36]} 15. Rad1 {[%clk 0:01:57]}  Bf5 {[%clk 0:02:34]} 16. e4 {[%clk 0:01:55]}  Be6 {[%clk 0:02:33]} 17. e5 {[%clk 0:01:55]}  Nd7 {[%clk 0:02:30]} 18. Ng3 {[%clk 0:01:44]}  f5 {[%clk 0:02:15]} 19. f4 {[%clk 0:01:39]}  Bf7 {[%clk 0:02:05]} 20. Nge2 {[%clk 0:01:36]}  Ne6 {[%clk 0:02:06]} 21. Be3 {[%clk 0:01:35]}  a5 {[%clk 0:01:57]} 22. g4 {[%clk 0:01:27]}  fxg4 {[%clk 0:01:50]} 23. f5 {[%clk 0:01:28]}  gxf5 {[%clk 0:01:47]} 24. Bxf5 {[%clk 0:01:28]}  Ndf8 {[%clk 0:01:47]} 25. Bxh7+ {[%clk 0:01:17]}  Kg7 {[%clk 0:01:36]} 26. Bh6+ {[%clk 0:00:54]}  Kxh6 {[%clk 0:01:27]} 27. Rxf7 {[%clk 0:00:55]}  Bg5 {[%clk 0:01:22]} 28. Ng3 {[%clk 0:00:46]}  Be3+ {[%clk 0:01:13]} 29. Kh1 {[%clk 0:00:43]}  Qg5 {[%clk 0:01:00]} 30. Nf5+ {[%clk 0:00:39]}  Kh5 {[%clk 0:01:00]} 31. Nd6 {[%clk 0:00:33]}  Re7 {[%clk 0:00:53]} 32. Rf5 {[%clk 0:00:32]}  Rxh7 {[%clk 0:00:52]} 33. Rxg5+ {[%clk 0:00:32]}  Bxg5 {[%clk 0:00:52]} 34. Ne2 {[%clk 0:00:31]}  Ng6 {[%clk 0:00:47]} 35. Ng3+ {[%clk 0:00:30]}  Kh4 {[%clk 0:00:45]} 36. Ndf5+ {[%clk 0:00:31]}  Kh3 {[%clk 0:00:46]} 37. Qg2# {[%clk 0:00:31]} 1-0


[Site "https://www.chess.com"]

[Event "Titled Tuesday Blitz March 29 Early 2022"]
[White "Iljin, Timofey"]
[Black "Lauridsen, Jesper Morch"]
[WhiteFideId "14110180"]
[BlackFideId "1401890"]
[WhiteElo "2396"]
[BlackElo "2332"]
[Result "1-0"]
[Round "10"]
[TimeControl "180+1"]
[Date "2022.03.30"]
[WhiteClock "0:00:17"]
[BlackClock "0:00:07"]

1. e4 {[%clk 0:02:57]}  c5 {[%clk 0:02:56]} 2. c3 {[%clk 0:02:56]}  Nf6 {[%clk 0:02:55]} 3. e5 {[%clk 0:02:55]}  Nd5 {[%clk 0:02:55]} 4. d4 {[%clk 0:02:56]}  cxd4 {[%clk 0:02:54]} 5. cxd4 {[%clk 0:02:57]}  d6 {[%clk 0:02:54]} 6. Nf3 {[%clk 0:02:57]}  e6 {[%clk 0:02:53]} 7. Bc4 {[%clk 0:02:57]}  Nc6 {[%clk 0:02:52]} 8. O-O {[%clk 0:02:56]}  Be7 {[%clk 0:02:52]} 9. exd6 {[%clk 0:02:55]}  Bxd6 {[%clk 0:02:52]} 10. Nc3 {[%clk 0:02:56]}  Nxc3 {[%clk 0:02:50]} 11. bxc3 {[%clk 0:02:50]}  O-O {[%clk 0:02:49]} 12. Bd3 {[%clk 0:02:47]}  b6 {[%clk 0:02:32]} 13. Bxh7+ {[%clk 0:02:47]}  Kxh7 {[%clk 0:02:32]} 14. Ng5+ {[%clk 0:02:46]}  Kg6 {[%clk 0:02:31]} 15. Qf3 {[%clk 0:02:39]}  Bb7 {[%clk 0:02:16]} 16. Qd3+ {[%clk 0:02:39]}  f5 {[%clk 0:02:11]} 17. Nxe6 {[%clk 0:02:39]}  Qh4 {[%clk 0:01:45]} 18. Nxf8+ {[%clk 0:02:28]}  Rxf8 {[%clk 0:01:44]} 19. f4 {[%clk 0:02:25]}  Qf6 {[%clk 0:01:11]} 20. Rf3 {[%clk 0:02:19]}  Na5 {[%clk 0:01:09]} 21. Rh3 {[%clk 0:02:11]}  Be4 {[%clk 0:01:04]} 22. Qg3+ {[%clk 0:02:09]}  Kf7 {[%clk 0:01:03]} 23. Be3 {[%clk 0:02:03]}  Nc4 {[%clk 0:01:00]} 24. Re1 {[%clk 0:02:02]}  Re8 {[%clk 0:00:47]} 25. Bf2 {[%clk 0:01:55]}  g5 {[%clk 0:00:38]} 26. Qxg5 {[%clk 0:01:19]}  Qxg5 {[%clk 0:00:18]} 27. fxg5 {[%clk 0:01:20]}  Rg8 {[%clk 0:00:18]} 28. Rh7+ {[%clk 0:01:17]}  Ke8 {[%clk 0:00:16]} 29. Rxa7 {[%clk 0:01:14]}  Rxg5 {[%clk 0:00:14]} 30. Bg3 {[%clk 0:01:03]}  Bxg3 {[%clk 0:00:14]} 31. hxg3 {[%clk 0:01:04]}  Rxg3 {[%clk 0:00:14]} 32. Re2 {[%clk 0:01:04]}  Ne3 {[%clk 0:00:14]} 33. Kf2 {[%clk 0:01:02]}  Rxg2+ {[%clk 0:00:13]} 34. Kxe3 {[%clk 0:01:02]}  f4+ {[%clk 0:00:14]} 35. Kxe4 {[%clk 0:00:49]}  Rxe2+ {[%clk 0:00:13]} 36. Kxf4 {[%clk 0:00:50]}  Rc2 {[%clk 0:00:13]} 37. Ra3 {[%clk 0:00:45]}  Kd7 {[%clk 0:00:14]} 38. Ke4 {[%clk 0:00:45]}  Kc6 {[%clk 0:00:14]} 39. Kd3 {[%clk 0:00:45]}  Rc1 {[%clk 0:00:13]} 40. c4 {[%clk 0:00:37]}  Rh1 {[%clk 0:00:13]} 41. Rb3 {[%clk 0:00:36]}  Rh2 {[%clk 0:00:11]} 42. a3 {[%clk 0:00:34]}  Rh3+ {[%clk 0:00:11]} 43. Kc2 {[%clk 0:00:33]}  Rh2+ {[%clk 0:00:12]} 44. Kc3 {[%clk 0:00:34]}  Rh3+ {[%clk 0:00:12]} 45. Kb4 {[%clk 0:00:34]}  Rh4 {[%clk 0:00:12]} 46. d5+ {[%clk 0:00:31]}  Kb7 {[%clk 0:00:13]} 47. Rg3 {[%clk 0:00:26]}  Rh1 {[%clk 0:00:12]} 48. Rg7+ {[%clk 0:00:23]}  Ka6 {[%clk 0:00:12]} 49. d6 {[%clk 0:00:24]}  Rb1+ {[%clk 0:00:11]} 50. Kc3 {[%clk 0:00:24]}  Rd1 {[%clk 0:00:11]} 51. d7 {[%clk 0:00:25]}  b5 {[%clk 0:00:10]} 52. c5 {[%clk 0:00:22]}  Ka5 {[%clk 0:00:09]} 53. c6 {[%clk 0:00:22]}  b4+ {[%clk 0:00:09]} 54. axb4+ {[%clk 0:00:22]}  Kb6 {[%clk 0:00:09]} 55. Rg6 {[%clk 0:00:17]}  Kc7 {[%clk 0:00:08]} 56. Kc4 {[%clk 0:00:17]}  Rc1+ {[%clk 0:00:08]} 57. Kb5 {[%clk 0:00:17]}  Ra1 {[%clk 0:00:07]} 58. Rg8 {[%clk 0:00:17]} 1-0


[Site "https://www.chess.com"]

[Event "Titled Tuesday Blitz March 29 Early 2022"]
[White "Ilyasli, Ughur"]
[Black "Gabdrakhmanov, Azat"]
[WhiteFideId "13416197"]
[BlackFideId "34189197"]
[WhiteElo "2045"]
[BlackElo "2279"]
[Result "0-1"]
[Round "10"]
[TimeControl "180+1"]
[Date "2022.03.30"]
[WhiteClock "0:00:02"]
[BlackClock "0:00:18"]

1. d4 {[%clk 0:03:00]}  Nf6 {[%clk 0:02:59]} 2. c4 {[%clk 0:03:01]}  g6 {[%clk 0:02:59]} 3. Nc3 {[%clk 0:03:01]}  Bg7 {[%clk 0:03:00]} 4. e4 {[%clk 0:03:02]}  O-O {[%clk 0:03:01]} 5. Nge2 {[%clk 0:03:02]}  d6 {[%clk 0:03:01]} 6. Ng3 {[%clk 0:03:02]}  Nc6 {[%clk 0:02:53]} 7. d5 {[%clk 0:02:59]}  Ne5 {[%clk 0:02:52]} 8. Be2 {[%clk 0:02:59]}  c6 {[%clk 0:02:49]} 9. f4 {[%clk 0:02:48]}  Ned7 {[%clk 0:02:48]} 10. O-O {[%clk 0:02:43]}  cxd5 {[%clk 0:02:47]} 11. cxd5 {[%clk 0:02:36]}  h5 {[%clk 0:02:46]} 12. h3 {[%clk 0:02:14]}  Nc5 {[%clk 0:02:32]} 13. Bf3 {[%clk 0:02:13]}  h4 {[%clk 0:02:27]} 14. Nh1 {[%clk 0:02:10]}  e6 {[%clk 0:02:20]} 15. dxe6 {[%clk 0:01:49]}  Bxe6 {[%clk 0:02:21]} 16. Qe1 {[%clk 0:01:44]}  Nd3 {[%clk 0:02:11]} 17. Qxh4 {[%clk 0:01:42]}  Qb6+ {[%clk 0:02:11]} 18. Nf2 {[%clk 0:01:33]}  Nd7 {[%clk 0:01:27]} 19. Kh1 {[%clk 0:01:09]}  Nxc1 {[%clk 0:01:17]} 20. Raxc1 {[%clk 0:01:02]}  Qxb2 {[%clk 0:01:17]} 21. f5 {[%clk 0:01:00]}  Bc4 {[%clk 0:01:13]} 22. Ng4 {[%clk 0:00:38]}  Bxf1 {[%clk 0:01:03]} 23. Nd5 {[%clk 0:00:37]}  Bxg2+ {[%clk 0:00:52]} 24. Bxg2 {[%clk 0:00:32]}  Qxc1+ {[%clk 0:00:51]} 25. Kh2 {[%clk 0:00:32]}  Rfe8 {[%clk 0:00:49]} 26. f6 {[%clk 0:00:29]}  Bf8 {[%clk 0:00:38]} 27. Nde3 {[%clk 0:00:16]}  Re5 {[%clk 0:00:27]} 28. Qf2 {[%clk 0:00:02]}  Rae8 {[%clk 0:00:22]} 29. Qf4 {[%clk 0:00:02]}  Rh5 {[%clk 0:00:19]} 30. Kg3 {[%clk 0:00:02]}  Ne5 {[%clk 0:00:18]} 0-1


[Site "https://www.chess.com"]

[Event "Titled Tuesday Blitz March 29 Early 2022"]
[White "Iskusnyh, Sergei"]
[Black "Gu, Xiaobing"]
[WhiteFideId "4120027"]
[BlackFideId "8602611"]
[WhiteElo "2492"]
[BlackElo "2174"]
[Result "1-0"]
[Round "10"]
[TimeControl "180+1"]
[Date "2022.03.30"]
[WhiteClock "0:01:42"]
[BlackClock "0:00:15"]

1. d4 {[%clk 0:02:58]}  Nf6 {[%clk 0:02:56]} 2. c4 {[%clk 0:02:59]}  e6 {[%clk 0:02:55]} 3. Nf3 {[%clk 0:02:58]}  d5 {[%clk 0:02:46]} 4. g3 {[%clk 0:02:47]}  Bb4+ {[%clk 0:02:44]} 5. Bd2 {[%clk 0:02:45]}  Be7 {[%clk 0:02:44]} 6. Bg2 {[%clk 0:02:45]}  O-O {[%clk 0:02:27]} 7. O-O {[%clk 0:02:46]}  Nbd7 {[%clk 0:02:18]} 8. Qc2 {[%clk 0:02:46]}  c6 {[%clk 0:02:18]} 9. a3 {[%clk 0:02:41]}  b6 {[%clk 0:02:12]} 10. cxd5 {[%clk 0:02:38]}  cxd5 {[%clk 0:02:10]} 11. Bb4 {[%clk 0:02:38]}  Ba6 {[%clk 0:02:04]} 12. Nc3 {[%clk 0:02:35]}  Rc8 {[%clk 0:02:01]} 13. Rfc1 {[%clk 0:02:33]}  Ne4 {[%clk 0:01:57]} 14. Qd1 {[%clk 0:02:29]}  Bb7 {[%clk 0:01:36]} 15. e3 {[%clk 0:02:21]}  a5 {[%clk 0:01:32]} 16. Bxe7 {[%clk 0:02:20]}  Qxe7 {[%clk 0:01:33]} 17. Nxe4 {[%clk 0:02:18]}  dxe4 {[%clk 0:01:32]} 18. Nd2 {[%clk 0:02:19]}  e5 {[%clk 0:01:26]} 19. Nxe4 {[%clk 0:02:09]}  exd4 {[%clk 0:00:51]} 20. Qxd4 {[%clk 0:02:07]}  Rfd8 {[%clk 0:00:36]} 21. Rxc8 {[%clk 0:02:06]}  Rxc8 {[%clk 0:00:34]} 22. Nd6 {[%clk 0:02:02]}  Bxg2 {[%clk 0:00:31]} 23. Nxc8 {[%clk 0:02:00]}  Qd8 {[%clk 0:00:19]} 24. Nxb6 {[%clk 0:01:50]}  Qxb6 {[%clk 0:00:16]} 25. Qxb6 {[%clk 0:01:47]}  Nxb6 {[%clk 0:00:16]} 26. Kxg2 {[%clk 0:01:48]}  Kf8 {[%clk 0:00:15]} 27. Rc1 {[%clk 0:01:46]}  Ke7 {[%clk 0:00:16]} 28. Rc6 {[%clk 0:01:44]}  Nd5 {[%clk 0:00:15]} 29. Ra6 {[%clk 0:01:42]} 1-0


[Site "https://www.chess.com"]

[Event "Titled Tuesday Blitz March 29 Early 2022"]
[White "Jary, Sergey"]
[Black "Tan, Jun Ying"]
[WhiteFideId "14110350"]
[BlackFideId "5710413"]
[WhiteElo "2260"]
[BlackElo "1827"]
[Result "1-0"]
[Round "10"]
[TimeControl "180+1"]
[Date "2022.03.29"]
[WhiteClock "0:00:41"]
[BlackClock "0:00:02"]

1. e4 {[%clk 0:02:59]}  c5 {[%clk 0:02:59]} 2. Nf3 {[%clk 0:02:59]}  Nc6 {[%clk 0:02:59]} 3. d4 {[%clk 0:02:59]}  cxd4 {[%clk 0:03:00]} 4. Nxd4 {[%clk 0:02:59]}  Nf6 {[%clk 0:03:01]} 5. Nc3 {[%clk 0:02:59]}  d6 {[%clk 0:03:01]} 6. Be3 {[%clk 0:02:58]}  Ng4 {[%clk 0:02:57]} 7. Bb5 {[%clk 0:02:57]}  Nxe3 {[%clk 0:02:53]} 8. fxe3 {[%clk 0:02:57]}  Bd7 {[%clk 0:02:51]} 9. Bxc6 {[%clk 0:02:57]}  bxc6 {[%clk 0:02:47]} 10. O-O {[%clk 0:02:57]}  e6 {[%clk 0:02:43]} 11. e5 {[%clk 0:02:29]}  d5 {[%clk 0:02:27]} 12. Qf3 {[%clk 0:02:29]}  Qe7 {[%clk 0:02:23]} 13. b4 {[%clk 0:02:29]}  g6 {[%clk 0:02:15]} 14. b5 {[%clk 0:02:24]}  c5 {[%clk 0:02:07]} 15. e4 {[%clk 0:02:21]}  cxd4 {[%clk 0:02:03]} 16. exd5 {[%clk 0:02:22]}  Qc5 {[%clk 0:01:16]} 17. Qxf7+ {[%clk 0:02:14]}  Kd8 {[%clk 0:01:15]} 18. Qf6+ {[%clk 0:02:15]}  Kc7 {[%clk 0:01:09]} 19. d6+ {[%clk 0:02:15]}  Bxd6 {[%clk 0:01:00]} 20. exd6+ {[%clk 0:02:14]}  Qxd6 {[%clk 0:01:00]} 21. Rad1 {[%clk 0:02:09]}  Qc5 {[%clk 0:00:56]} 22. Ne4 {[%clk 0:01:44]}  Qxb5 {[%clk 0:00:52]} 23. Qxd4 {[%clk 0:01:42]}  Qd5 {[%clk 0:00:19]} 24. Qe3 {[%clk 0:01:26]}  Qc6 {[%clk 0:00:13]} 25. Nf6 {[%clk 0:01:18]}  Rhd8 {[%clk 0:00:11]} 26. Qe5+ {[%clk 0:01:18]}  Kc8 {[%clk 0:00:10]} 27. Nxd7 {[%clk 0:01:13]}  Rxd7 {[%clk 0:00:10]} 28. Rf8+ {[%clk 0:01:13]}  Kb7 {[%clk 0:00:10]} 29. Rb1+ {[%clk 0:00:50]}  Ka6 {[%clk 0:00:09]} 30. Qe2+ {[%clk 0:00:50]}  Ka5 {[%clk 0:00:09]} 31. Rxa8 {[%clk 0:00:50]}  Qc5+ {[%clk 0:00:06]} 32. Kh1 {[%clk 0:00:49]}  Rd4 {[%clk 0:00:05]} 33. Rab8 {[%clk 0:00:49]}  a6 {[%clk 0:00:04]} 34. R8b3 {[%clk 0:00:48]}  Rc4 {[%clk 0:00:03]} 35. Qd2+ {[%clk 0:00:48]}  Ka4 {[%clk 0:00:03]} 36. c3 {[%clk 0:00:42]}  e5 {[%clk 0:00:02]} 37. Qd1 {[%clk 0:00:41]}  Ka5 {[%clk 0:00:02]} 38. Rb4 {[%clk 0:00:41]} 1-0


[Site "https://www.chess.com"]

[Event "Titled Tuesday Blitz March 29 Early 2022"]
[White "Johnson, Ben"]
[Black "Piliczewski, Bogusz"]
[WhiteFideId "2010917"]
[BlackFideId "1104144"]
[WhiteElo "2192"]
[BlackElo "1896"]
[Result "1-0"]
[Round "10"]
[TimeControl "180+1"]
[Date "2022.03.30"]
[WhiteClock "0:00:18"]
[BlackClock "0:00:03"]

1. Nf3 {[%clk 0:03:00]}  d5 {[%clk 0:02:58]} 2. e3 {[%clk 0:02:59]}  Nf6 {[%clk 0:02:57]} 3. c4 {[%clk 0:02:59]}  c6 {[%clk 0:02:56]} 4. Nc3 {[%clk 0:02:59]}  Bf5 {[%clk 0:02:54]} 5. cxd5 {[%clk 0:02:59]}  cxd5 {[%clk 0:02:53]} 6. Qb3 {[%clk 0:02:59]}  b6 {[%clk 0:02:28]} 7. Bb5+ {[%clk 0:02:52]}  Nbd7 {[%clk 0:02:28]} 8. Nxd5 {[%clk 0:02:49]}  Nxd5 {[%clk 0:02:23]} 9. Qxd5 {[%clk 0:02:48]}  Be6 {[%clk 0:02:23]} 10. Qh5 {[%clk 0:02:38]}  g6 {[%clk 0:02:21]} 11. Qh4 {[%clk 0:02:36]}  Bg7 {[%clk 0:02:18]} 12. O-O {[%clk 0:02:33]}  Bf6 {[%clk 0:02:09]} 13. Qg3 {[%clk 0:02:31]}  O-O {[%clk 0:02:08]} 14. d4 {[%clk 0:02:27]}  Bd5 {[%clk 0:02:05]} 15. Bd3 {[%clk 0:02:19]}  Bxf3 {[%clk 0:01:56]} 16. Qxf3 {[%clk 0:02:17]}  e5 {[%clk 0:01:57]} 17. d5 {[%clk 0:02:00]}  Nc5 {[%clk 0:01:52]} 18. e4 {[%clk 0:02:00]}  Bg7 {[%clk 0:01:50]} 19. b4 {[%clk 0:01:57]}  Nxd3 {[%clk 0:01:49]} 20. Qxd3 {[%clk 0:01:58]}  Qd6 {[%clk 0:01:42]} 21. b5 {[%clk 0:01:55]}  Rac8 {[%clk 0:01:40]} 22. Ba3 {[%clk 0:01:52]}  Rc5 {[%clk 0:01:34]} 23. Bxc5 {[%clk 0:01:50]}  bxc5 {[%clk 0:01:33]} 24. Qc4 {[%clk 0:01:48]}  Rc8 {[%clk 0:01:29]} 25. a4 {[%clk 0:01:44]}  Bf8 {[%clk 0:01:29]} 26. a5 {[%clk 0:01:43]}  h5 {[%clk 0:01:26]} 27. Rfb1 {[%clk 0:01:42]}  Rb8 {[%clk 0:01:23]} 28. Rb3 {[%clk 0:01:30]}  Kg7 {[%clk 0:01:17]} 29. Rab1 {[%clk 0:01:29]}  Be7 {[%clk 0:01:15]} 30. b6 {[%clk 0:01:28]}  axb6 {[%clk 0:01:11]} 31. Rxb6 {[%clk 0:01:28]}  Rxb6 {[%clk 0:01:11]} 32. Rxb6 {[%clk 0:01:28]}  Qc7 {[%clk 0:01:09]} 33. g3 {[%clk 0:01:11]}  Bd8 {[%clk 0:01:07]} 34. d6 {[%clk 0:01:09]}  Qa7 {[%clk 0:01:06]} 35. Qxc5 {[%clk 0:01:06]}  Bxb6 {[%clk 0:01:05]} 36. Qxb6 {[%clk 0:01:06]}  Qa8 {[%clk 0:00:56]} 37. Qb4 {[%clk 0:00:46]}  f5 {[%clk 0:00:47]} 38. d7 {[%clk 0:00:39]}  Qd8 {[%clk 0:00:44]} 39. Qd6 {[%clk 0:00:36]}  fxe4 {[%clk 0:00:39]} 40. Qxe5+ {[%clk 0:00:36]}  Kh7 {[%clk 0:00:37]} 41. Qe8 {[%clk 0:00:33]}  Qxa5 {[%clk 0:00:29]} 42. Qf7+ {[%clk 0:00:30]}  Kh6 {[%clk 0:00:27]} 43. Qf4+ {[%clk 0:00:30]}  g5 {[%clk 0:00:19]} 44. Qxe4 {[%clk 0:00:26]}  Qc7 {[%clk 0:00:11]} 45. Qe6+ {[%clk 0:00:24]}  Kh7 {[%clk 0:00:09]} 46. Qe7+ {[%clk 0:00:24]}  Kh6 {[%clk 0:00:09]} 47. d8=Q {[%clk 0:00:20]}  Qc1+ {[%clk 0:00:08]} 48. Kg2 {[%clk 0:00:20]}  Qc6+ {[%clk 0:00:08]} 49. Kf1 {[%clk 0:00:20]}  Qc1+ {[%clk 0:00:08]} 50. Qe1 {[%clk 0:00:19]}  Qc4+ {[%clk 0:00:07]} 51. Kg1 {[%clk 0:00:19]}  g4 {[%clk 0:00:05]} 52. Qd6+ {[%clk 0:00:18]}  Kh7 {[%clk 0:00:04]} 53. Qee7+ {[%clk 0:00:18]}  Kg8 {[%clk 0:00:04]} 54. Qg6+ {[%clk 0:00:17]}  Kh8 {[%clk 0:00:03]} 55. Qgh7# {[%clk 0:00:18]} 1-0


[Site "https://www.chess.com"]

[Event "Titled Tuesday Blitz March 29 Early 2022"]
[White "Kaminski, Victor"]
[Black "Obolentseva, Alexandra"]
[WhiteFideId "1131630"]
[BlackFideId "24153648"]
[WhiteElo "2181"]
[BlackElo "2113"]
[Result "0-1"]
[Round "10"]
[TimeControl "180+1"]
[Date "2022.03.30"]
[WhiteClock "0:00:01"]
[BlackClock "0:00:30"]

1. e4 {[%clk 0:03:00]}  c5 {[%clk 0:02:38]} 2. Nf3 {[%clk 0:02:59]}  d6 {[%clk 0:02:36]} 3. Bb5+ {[%clk 0:02:56]}  Nd7 {[%clk 0:02:36]} 4. O-O {[%clk 0:02:50]}  Nf6 {[%clk 0:02:35]} 5. Re1 {[%clk 0:02:49]}  a6 {[%clk 0:02:34]} 6. Bd3 {[%clk 0:02:49]}  g6 {[%clk 0:02:34]} 7. c4 {[%clk 0:02:49]}  Bg7 {[%clk 0:02:34]} 8. Nc3 {[%clk 0:02:49]}  O-O {[%clk 0:02:34]} 9. Bc2 {[%clk 0:02:40]}  Rb8 {[%clk 0:02:30]} 10. d4 {[%clk 0:02:37]}  cxd4 {[%clk 0:02:29]} 11. Nxd4 {[%clk 0:02:38]}  Ne5 {[%clk 0:02:30]} 12. b3 {[%clk 0:02:37]}  Nc6 {[%clk 0:02:25]} 13. Bb2 {[%clk 0:02:28]}  Bd7 {[%clk 0:02:22]} 14. f3 {[%clk 0:02:24]}  Qb6 {[%clk 0:02:19]} 15. Na4 {[%clk 0:02:10]}  Qa7 {[%clk 0:02:17]} 16. Kh1 {[%clk 0:01:59]}  b5 {[%clk 0:02:10]} 17. Nxc6 {[%clk 0:01:56]}  Bxc6 {[%clk 0:02:09]} 18. cxb5 {[%clk 0:01:55]}  axb5 {[%clk 0:02:10]} 19. Nc3 {[%clk 0:01:53]}  Qf2 {[%clk 0:01:58]} 20. Qe2 {[%clk 0:01:48]}  Qh4 {[%clk 0:01:58]} 21. Rab1 {[%clk 0:01:38]}  Nh5 {[%clk 0:01:57]} 22. Qd2 {[%clk 0:01:01]}  Be5 {[%clk 0:01:52]} 23. g3 {[%clk 0:00:37]}  Nxg3+ {[%clk 0:01:46]} 24. Kg2 {[%clk 0:00:36]}  Nh5 {[%clk 0:01:33]} 25. Kh1 {[%clk 0:00:33]}  Qh3 {[%clk 0:01:18]} 26. Qg2 {[%clk 0:00:30]}  Qxg2+ {[%clk 0:01:18]} 27. Kxg2 {[%clk 0:00:30]}  Nf4+ {[%clk 0:01:19]} 28. Kf1 {[%clk 0:00:25]}  b4 {[%clk 0:01:19]} 29. Ne2 {[%clk 0:00:20]}  Nxe2 {[%clk 0:01:15]} 30. Kxe2 {[%clk 0:00:21]}  Ra8 {[%clk 0:01:14]} 31. Bxe5 {[%clk 0:00:16]}  dxe5 {[%clk 0:01:15]} 32. Rb2 {[%clk 0:00:15]}  f5 {[%clk 0:00:59]} 33. Bd3 {[%clk 0:00:10]}  fxe4 {[%clk 0:00:56]} 34. fxe4 {[%clk 0:00:11]}  Rf4 {[%clk 0:00:54]} 35. Ke3 {[%clk 0:00:09]}  Raf8 {[%clk 0:00:52]} 36. Rc2 {[%clk 0:00:04]}  Rf3+ {[%clk 0:00:46]} 37. Kd2 {[%clk 0:00:05]}  Bd7 {[%clk 0:00:40]} 38. Rc5 {[%clk 0:00:03]}  Bg4 {[%clk 0:00:38]} 39. Rb5 {[%clk 0:00:01]}  Rf2+ {[%clk 0:00:37]} 40. Kc1 {[%clk 0:00:02]}  Rxa2 {[%clk 0:00:36]} 41. Bc4+ {[%clk 0:00:02]}  Kg7 {[%clk 0:00:35]} 42. Rxe5 {[%clk 0:00:02]}  Rff2 {[%clk 0:00:31]} 43. Rxe7+ {[%clk 0:00:03]}  Kf8 {[%clk 0:00:31]} 44. Rb7 {[%clk 0:00:01]}  Ra1# {[%clk 0:00:30]} 0-1


[Site "https://www.chess.com"]

[Event "Titled Tuesday Blitz March 29 Early 2022"]
[White "Kostiukov, Alexandr"]
[Black "Mikhalsky, Vladimir"]
[WhiteFideId "14108100"]
[BlackFideId "14144352"]
[WhiteElo "2202"]
[BlackElo "2301"]
[Result "0-1"]
[Round "10"]
[TimeControl "180+1"]
[Date "2022.03.30"]
[WhiteClock "0:00:05"]
[BlackClock "0:00:46"]

1. g3 {[%clk 0:02:52]}  c5 {[%clk 0:02:58]} 2. Bg2 {[%clk 0:02:52]}  Nc6 {[%clk 0:02:43]} 3. c4 {[%clk 0:02:51]}  Nf6 {[%clk 0:02:42]} 4. Nf3 {[%clk 0:02:48]}  d5 {[%clk 0:02:42]} 5. cxd5 {[%clk 0:02:47]}  Nxd5 {[%clk 0:02:42]} 6. Nc3 {[%clk 0:02:48]}  Nc7 {[%clk 0:02:43]} 7. O-O {[%clk 0:02:40]}  e5 {[%clk 0:02:42]} 8. e3 {[%clk 0:02:35]}  Be7 {[%clk 0:02:39]} 9. b3 {[%clk 0:02:16]}  O-O {[%clk 0:02:29]} 10. Bb2 {[%clk 0:02:16]}  Bf5 {[%clk 0:02:20]} 11. e4 {[%clk 0:02:10]}  Be6 {[%clk 0:02:13]} 12. d3 {[%clk 0:02:03]}  f6 {[%clk 0:02:12]} 13. a3 {[%clk 0:02:01]}  Qd7 {[%clk 0:02:07]} 14. Qc2 {[%clk 0:01:59]}  Rfd8 {[%clk 0:02:06]} 15. Rfd1 {[%clk 0:01:59]}  Na5 {[%clk 0:02:04]} 16. Nd2 {[%clk 0:01:56]}  Qxd3 {[%clk 0:02:00]} 17. Qxd3 {[%clk 0:01:41]}  Rxd3 {[%clk 0:01:53]} 18. Nd5 {[%clk 0:01:07]}  Nxd5 {[%clk 0:01:50]} 19. exd5 {[%clk 0:01:07]}  Bxd5 {[%clk 0:01:49]} 20. Bf1 {[%clk 0:01:02]}  Rd4 {[%clk 0:01:42]} 21. Bxd4 {[%clk 0:00:56]}  cxd4 {[%clk 0:01:39]} 22. b4 {[%clk 0:00:55]}  Nc6 {[%clk 0:01:32]} 23. Bg2 {[%clk 0:00:52]}  Rd8 {[%clk 0:01:30]} 24. Rac1 {[%clk 0:00:50]}  f5 {[%clk 0:01:21]} 25. Bxd5+ {[%clk 0:00:45]}  Rxd5 {[%clk 0:01:20]} 26. Nb3 {[%clk 0:00:45]}  d3 {[%clk 0:01:14]} 27. f3 {[%clk 0:00:43]}  e4 {[%clk 0:01:13]} 28. fxe4 {[%clk 0:00:42]}  fxe4 {[%clk 0:01:13]} 29. Kf2 {[%clk 0:00:35]}  Bg5 {[%clk 0:01:10]} 30. Rc5 {[%clk 0:00:29]}  e3+ {[%clk 0:01:09]} 31. Kf3 {[%clk 0:00:27]}  e2 {[%clk 0:01:07]} 32. Rb1 {[%clk 0:00:14]}  Ne5+ {[%clk 0:00:56]} 33. Ke4 {[%clk 0:00:12]}  d2 {[%clk 0:00:49]} 34. Nxd2 {[%clk 0:00:09]}  Rxc5 {[%clk 0:00:47]} 35. bxc5 {[%clk 0:00:08]}  Bxd2 {[%clk 0:00:47]} 36. Kxe5 {[%clk 0:00:04]}  e1=Q+ {[%clk 0:00:46]} 37. Rxe1 {[%clk 0:00:05]}  Bxe1 {[%clk 0:00:46]} 0-1


[Site "https://www.chess.com"]

[Event "Titled Tuesday Blitz March 29 Early 2022"]
[White "Kozak, Antoni"]
[Black "Postny, Evgeny"]
[WhiteFideId "21832030"]
[BlackFideId "2804344"]
[WhiteElo "2236"]
[BlackElo "2483"]
[Result "1-0"]
[Round "10"]
[TimeControl "180+1"]
[Date "2022.03.29"]
[WhiteClock "0:00:46"]
[BlackClock "0:01:41"]

1. d4 {[%clk 0:03:00]}  Nf6 {[%clk 0:02:58]} 2. c4 {[%clk 0:03:01]}  e5 {[%clk 0:02:58]} 3. dxe5 {[%clk 0:02:57]}  Ne4 {[%clk 0:02:59]} 4. a3 {[%clk 0:02:40]}  d6 {[%clk 0:02:56]} 5. Nf3 {[%clk 0:02:35]}  Nc6 {[%clk 0:02:56]} 6. Bf4 {[%clk 0:02:30]}  a5 {[%clk 0:02:46]} 7. e3 {[%clk 0:02:26]}  Bg4 {[%clk 0:02:35]} 8. Be2 {[%clk 0:02:17]}  Qd7 {[%clk 0:02:26]} 9. exd6 {[%clk 0:02:09]}  Bxd6 {[%clk 0:02:23]} 10. Bxd6 {[%clk 0:02:04]}  Nxd6 {[%clk 0:02:23]} 11. Nc3 {[%clk 0:01:58]}  O-O-O {[%clk 0:02:21]} 12. c5 {[%clk 0:01:49]}  Bxf3 {[%clk 0:02:13]} 13. Bxf3 {[%clk 0:01:38]}  Nc4 {[%clk 0:02:11]} 14. Bg4 {[%clk 0:01:36]}  f5 {[%clk 0:02:09]} 15. Qxd7+ {[%clk 0:01:36]}  Kxd7 {[%clk 0:02:09]} 16. Bxf5+ {[%clk 0:01:36]}  Ke7 {[%clk 0:02:09]} 17. b3 {[%clk 0:01:27]}  N4e5 {[%clk 0:02:03]} 18. Ke2 {[%clk 0:01:20]}  Rhf8 {[%clk 0:02:02]} 19. Be4 {[%clk 0:01:19]}  Ng4 {[%clk 0:01:53]} 20. f3 {[%clk 0:01:08]}  Nf6 {[%clk 0:01:51]} 21. Rhd1 {[%clk 0:01:07]}  Ne5 {[%clk 0:01:45]} 22. Bxb7 {[%clk 0:00:58]}  Rb8 {[%clk 0:01:44]} 23. c6 {[%clk 0:00:58]}  Nf7 {[%clk 0:01:41]} 24. Nb5 {[%clk 0:00:52]}  Nd6 {[%clk 0:01:41]} 25. Nxd6 {[%clk 0:00:51]}  cxd6 {[%clk 0:01:41]} 26. Rac1 {[%clk 0:00:46]} 1-0


[Site "https://www.chess.com"]